bitfinex/quotes_ETHUSD_20250814
["timestamp","ask_amount","ask_price","bid_price","bid_amount"]
[1755196297144,2.20405104,4537.1,4536.3,3.16332514]
[1755196297350,2.20410319,4537.0,4536.3,3.16332514]
[1755196297550,2.20415145,4536.9,4536.3,0.9589]
[1755196297749,0.1124,4537.2,4536.3,0.1104]
[1755196297959,2.20414595,4537.0,4536.3,0.1104]
[1755196298163,2.20424708,4536.7,4536.3,0.1104]
[1755196298894,2.20420295,4536.8,4536.3,0.1104]
[1755196299065,2.20425947,4536.7,4536.3,0.1104]
[1755196299602,6.2081093,4537.0,4535.4,2.20487701]
[1755196299822,2.2044803,4536.3,4535.9,0.1104]
[1755196299987,0.1104,4536.7,4535.9,0.1104]
[1755196300665,2.20410008,4537.0,4536.2,2.20446138]
[1755196300873,0.1104,4537.0,4536.3,0.1104]
[1755196301126,0.002,4537.2,4536.4,0.8485]
[1755196301274,0.002,4537.2,4537.1,0.1104]
[1755196301467,0.002,4537.2,4536.5,2.20433355]
[1755196301687,0.002,4537.2,4536.9,0.1104]
[1755196302290,2.20409962,4537.0,4536.9,0.1104]
[1755196302569,0.1104,4537.0,4536.4,0.1104]
[1755196302772,0.002,4537.2,4536.2,2.67777648]
[1755196302967,0.002,4537.2,4536.7,0.1104]
[1755196303806,0.002,4537.2,4536.8,1.3218]
[1755196304188,0.002,4537.2,4536.7,0.1104]
[1755196304394,0.002,4537.2,4535.9,2.20461878]
[1755196304595,0.1104,4537.0,4536.4,0.1104]
[1755196304996,2.20420536,4536.8,4536.4,0.1104]
[1755196305312,2.3145098,4537.0,4536.4,0.1104]
[1755196305484,0.1104,4537.0,4536.4,0.1104]
[1755196306209,2.2041482,4536.9,4536.4,0.1104]
[1755196306521,0.1104,4537.0,4536.4,0.1104]
[1755196306809,0.1104,4537.0,4536.4,0.5837]
[1755196307315,0.1104,4537.0,4536.4,2.78808253]
[1755196307515,0.1104,4537.0,4536.4,0.5837]
[1755196308393,2.31451608,4537.0,4536.4,0.1104]
[1755196308528,0.1104,4537.0,4536.4,0.1104]
[1755196308722,0.1104,4537.0,4536.4,2.3147875]
[1755196308929,0.1104,4537.0,4536.4,0.1104]
[1755196309308,3.994,4536.9,4535.9,0.1104]
[1755196309498,0.1104,4536.4,4536.0,2.20458553]
[1755196309705,0.1104,4536.4,4536.0,3.52638553]
[1755196310238,0.1104,4536.4,4535.9,0.1104]
[1755196310643,1.037443,4537.0,4536.0,1.3218]
[1755196310806,1.147843,4537.0,4536.4,0.1104]
[1755196311402,2.20430714,4536.6,4536.4,0.1104]
[1755196311607,2.20430714,4536.6,4535.8,2.20467812]
[1755196313052,0.1104,4536.3,4535.7,0.1104]
[1755196313543,0.1104,4536.5,4535.8,2.20468274]
[1755196313745,0.1104,4536.5,4535.7,1.0303]
[1755196313918,2.3147543,4536.5,4535.7,0.1104]
[1755196314245,2.20439221,4536.4,4535.7,0.1104]
[1755196314545,0.1104,4536.5,4535.8,2.20467379]
[1755196314721,0.1104,4536.5,4535.7,0.1104]
[1755196315127,0.1104,4536.5,4535.8,2.20463595]
[1755196315328,0.1104,4536.5,4535.7,0.1104]
[1755196316447,0.1104,4536.5,4535.7,2.31511803]
[1755196316646,0.1104,4536.5,4535.9,2.20463414]
[1755196316811,0.1104,4536.5,4535.8,2.20468274]
[1755196317015,0.1104,4536.5,4535.7,2.31512765]
[1755196317235,0.1104,4536.5,4536.2,2.20445968]
[1755196317552,0.1104,4536.5,4536.4,2.20439114]
[1755196317858,1.037443,4537.0,4536.4,3.68109114]
[1755196318530,1.037443,4537.0,4536.6,2.20428467]
[1755196318885,1.037443,4537.0,4536.6,3.57058467]
[1755196319081,1.037443,4537.0,4536.6,1.3663]
[1755196319235,1.037443,4537.0,4536.4,0.1104]
[1755196319441,1.037443,4537.0,4536.8,0.1104]
[1755196319655,1.037443,4537.0,4536.8,2.31459422]
[1755196319850,1.039443,4537.0,4536.8,2.31459422]
[1755196320040,1.039443,4537.0,4536.8,0.1104]
[1755196321745,2.20419679,4536.8,4535.2,3.98]
[1755196321964,0.1104,4536.6,4535.9,0.1104]
[1755196322164,2.31469401,4536.6,4535.9,0.1104]
[1755196322378,2.20446252,4536.3,4535.9,0.1104]
[1755196322583,2.3147025,4536.6,4535.9,0.1104]
[1755196323167,0.1104,4536.6,4535.9,0.1104]
[1755196323511,2.31470093,4536.6,4535.9,0.1104]
[1755196323898,0.1104,4536.6,4535.9,2.31500591]
[1755196324207,0.1104,4536.6,4536.0,2.20457613]
[1755196324412,0.1104,4536.6,4535.9,1.4767]
[1755196324694,0.1104,4536.9,4536.3,0.1104]
[1755196324914,2.3145487,4536.9,4536.3,0.1104]
[1755196325561,0.1104,4536.9,4536.3,0.1104]
[1755196326163,2.20430111,4536.6,4535.8,2.20466958]
[1755196326397,2.20430111,4536.6,4536.1,0.1104]
[1755196326604,2.20434304,4536.5,4536.1,0.1104]
[1755196326977,2.20425339,4536.7,4536.1,0.1104]
[1755196327174,2.20428629,4536.7,4536.1,0.1104]
[1755196327378,2.20419747,4536.8,4536.1,0.1104]
[1755196327580,0.1104,4536.9,4536.1,0.1104]
[1755196327783,1.039443,4537.0,4536.2,1.38834488]
[1755196328082,1.039443,4537.0,4536.1,0.14767]
[1755196328083,1.039443,4537.0,4536.9,2.2041482]
[1755196328288,1.039443,4537.0,4536.9,3.5704482]
[1755196330387,1.039443,4537.0,4536.8,6.28655827]
[1755196330388,1.039443,4537.0,4536.8,6.28658517]
[1755196330592,1.039443,4537.0,4536.9,2.2041482]
[1755196330772,1.039443,4537.0,4536.9,3.5704482]
[1755196330972,1.039443,4537.0,4536.9,2.3145482]
[1755196331178,1.039443,4537.0,4536.9,3.6808482]
[1755196331419,1.039443,4537.0,4536.9,4.66625488]
[1755196331724,1.039443,4537.0,4536.9,7.6488482]
[1755196333614,1.039443,4537.0,4536.9,1.4767]
[1755196333824,1.039443,4537.0,4536.9,4.0774]
[1755196334421,1.039443,4537.0,4536.9,2.3145482]
[1755196334569,1.039443,4537.0,4536.9,7.6458482]
[1755196336270,1.039443,4537.0,4536.9,8.63085754]
[1755196336475,1e-08,4537.2,4537.0,5.20409962]
[1755196336713,0.002,4537.5,4537.4,2.75390532]
[1755196336913,0.002,4537.5,4537.4,9.82630532]
[1755196337115,2.21764285,4539.5,4538.5,2.20335465]
[1755196337326,2.31328609,4539.5,4538.6,3.961]
[1755196337529,2.20230566,4540.7,4539.3,0.1104]
[1755196337685,0.1104,4539.5,4538.6,3.961]
[1755196338021,2.31331847,4539.5,4538.8,0.1104]
[1755196338182,0.1104,4539.5,4538.8,0.1104]
[1755196338391,2.20292332,4539.5,4539.2,0.1104]
[1755196338729,2.67182332,4539.5,4539.0,0.1104]
[1755196339083,2.31324523,4539.6,4539.0,0.1104]
[1755196339283,0.1104,4539.6,4539.0,0.1104]
[1755196339622,0.5793,4539.9,4539.1,0.1104]
[1755196339920,2.20297697,4539.4,4539.1,0.1104]
[1755196340125,0.1104,4539.6,4539.1,0.1104]
[1755196340325,0.4689,4539.9,4538.6,3.961]
[1755196340326,0.1104,4539.9,4539.3,0.1104]
[1755196340683,2.20280657,4539.7,4539.3,0.1104]
[1755196340891,0.1104,4539.9,4539.3,0.1104]
[1755196341092,2.20291921,4539.5,4539.3,0.1104]
[1755196341300,0.1104,4539.9,4539.3,0.1104]
[1755196341624,2.2029343,4539.4,4539.3,0.1104]
[1755196341930,2.20289505,4539.5,4538.6,3.961]
[1755196342151,0.1104,4539.6,4539.0,0.1104]
[1755196343915,5.31301138,4540.1,4539.4,0.1104]
[1755196344126,0.1104,4540.4,4539.8,0.1104]
[1755196344331,0.1104,4540.4,4539.3,0.8768]
[1755196344332,2.20235211,4540.6,4539.6,2.20282331]
[1755196344626,2.20239221,4540.6,4539.6,2.20280064]
[1755196344828,0.1104,4540.8,4540.1,0.1104]
[1755196345627,2.2023036,4540.7,4540.1,0.1104]
[1755196346136,0.1104,4540.8,4540.1,0.1104]
[1755196346308,0.1762,4540.7,4539.9,0.1104]
[1755196346511,2.20262837,4540.1,4539.7,0.1104]
[1755196346714,0.1104,4540.3,4539.7,0.9872]
[1755196347047,2.2025844,4540.2,4539.7,0.1104]
[1755196347198,0.1104,4540.3,4539.7,0.1104]
[1755196347808,0.1104,4540.3,4539.8,0.8988274]
[1755196348010,2.20230839,4540.7,4540.1,0.1104]
[1755196348215,2.2022695,4540.8,4540.2,0.1104]
[1755196348413,2.20210962,4541.1,4539.9,1.3278]
[1755196348638,0.1104,4540.9,4540.3,0.1104]
[1755196348835,2.20229307,4540.8,4540.3,0.1104]
[1755196349136,0.1104,4540.9,4540.4,0.8768]
[1755196349310,0.1104,4540.9,4540.4,1.3278]
[1755196349708,2.20218573,4541.0,4540.5,0.8768]
[1755196349922,0.1104,4541.2,4540.3,0.1104]
[1755196350751,2.20216361,4541.0,4540.3,0.1104]
[1755196351063,2.20211614,4541.1,4540.3,0.1104]
[1755196351358,0.1104,4541.2,4540.3,0.47447384]
[1755196351657,2.20219609,4541.0,4540.3,0.47447384]
[1755196352057,2.20221653,4540.9,4540.3,0.1104]
[1755196352368,0.1104,4541.2,4540.3,0.1104]
[1755196352651,2.31247036,4541.2,4540.3,0.1104]
[1755196352843,2.20215673,4541.1,4540.3,0.1104]
[1755196353057,0.1104,4541.2,4540.3,0.1104]
[1755196353219,2.20215441,4541.1,4540.3,0.1104]
[1755196353558,2.20217423,4541.0,4540.3,0.1104]
[1755196353700,2.20229302,4540.8,4540.3,0.1104]
[1755196353903,2.20221177,4540.9,4540.3,0.1104]
[1755196354146,2.20216347,4541.0,4540.3,0.1104]
[1755196354721,2.20211957,4541.1,4540.3,0.1104]
[1755196355253,2.31247238,4541.2,4540.3,0.1104]
[1755196355661,2.31447238,4541.2,4540.3,0.1104]
[1755196355817,2.20212034,4541.1,4540.3,0.1104]
[1755196356365,2.31446446,4541.2,4540.3,0.1104]
[1755196356566,0.1124,4541.2,4540.3,2.31288208]
[1755196356865,2.31447824,4541.2,4540.7,0.1104]
[1755196357067,0.1124,4541.2,4540.7,0.1104]
[1755196357228,0.1124,4541.2,4540.7,0.9872]
[1755196357566,0.002,4541.2,4540.8,1.3278]
[1755196357871,0.002,4541.2,4540.7,0.1104]
[1755196358183,0.002,4541.2,4540.9,1.3278]
[1755196358472,0.002,4541.2,4541.1,0.1104]
[1755196359247,0.002,4541.2,4540.3,3.934]
[1755196359451,2.20222959,4540.9,4540.7,0.1104]
[1755196359664,0.002,4541.2,4540.7,0.1104]
[1755196360026,0.002,4541.2,4539.7,3.933]
[1755196360027,0.002,4541.2,4540.8,0.451]
[1755196360231,0.002,4541.2,4540.9,1.4382]
[1755196360430,0.002,4541.2,4541.0,1.3278]
[1755196360731,0.002,4541.2,4540.9,0.25422]
[1755196360913,0.002,4541.2,4540.9,0.1104]
[1755196363221,2.20408538,4541.2,4540.9,0.1104]
[1755196363426,0.1104,4541.0,4540.4,0.1104]
[1755196363622,0.002,4541.2,4540.6,0.1104]
[1755196363985,0.002,4541.2,4539.7,0.8768]
[1755196364129,2.20254781,4540.2,4539.6,3.927]
[1755196364485,0.1856,4540.1,4538.9,0.001]
[1755196364784,0.1104,4539.3,4538.9,0.001]
[1755196364934,2.20288887,4539.5,4538.9,0.001]
[1755196365126,2.31324682,4539.6,4538.9,0.001]
[1755196365325,0.1104,4539.6,4538.9,1.3288]
[1755196365525,0.1104,4539.6,4538.9,1.69313774]
[1755196365775,0.1104,4539.6,4539.0,5.2528]
[1755196365980,0.93228856,4541.0,4539.3,2.20295818]
[1755196366194,0.1104,4540.5,4539.9,0.1104]
[1755196366346,0.1104,4541.0,4540.4,0.1104]
[1755196366695,0.002,4541.2,4540.5,3.07919418]
[1755196367176,0.002,4541.2,4540.7,0.1104]
[1755196368187,0.002,4541.2,4540.7,1.4382]
[1755196368330,0.002,4541.2,4540.7,0.1104]
[1755196368528,0.002,4541.2,4540.9,0.1104]
[1755196370772,0.002,4541.2,4540.5,0.451]
[1755196370976,0.002,4541.2,4540.7,0.1104]
[1755196371334,0.002,4541.2,4540.7,1.4382]
[1755196371535,0.002,4541.2,4540.7,0.1104]
[1755196372070,0.4455,4541.2,4540.4,2.20240772]
[1755196372272,0.4455,4541.2,4540.8,0.1104]
[1755196372456,0.002,4541.2,4540.8,0.1104]
[1755196372773,2.20225815,4540.8,4539.7,2.20274494]
[1755196372969,3.48281666,4541.1,4540.3,0.001]
[1755196372970,0.1104,4540.6,4540.3,0.001]
[1755196373165,0.5539,4540.6,4540.3,0.001]
[1755196373369,1.2807,4541.1,4540.3,0.001]
[1755196373570,0.1104,4540.8,4540.3,0.001]
[1755196373756,0.1104,4540.5,4540.3,0.001]
[1755196374070,3.48314912,4540.4,4540.3,0.001]
[1755196374269,2.64594912,4540.4,4540.3,0.001]
[1755196374673,0.4435,4540.4,4540.3,0.001]
[1755196374879,2.31280574,4540.5,4540.3,0.001]
[1755196374880,0.1104,4540.5,4540.3,0.001]
[1755196375178,0.002,4541.2,4540.3,0.001]
[1755196375376,0.002,4541.2,4540.4,0.8542]
[1755196375878,0.002,4541.2,4540.7,0.1104]
[1755196376079,0.4435,4541.1,4540.3,0.001]
[1755196376278,0.4435,4541.1,4540.4,0.1104]
[1755196376444,0.002,4541.2,4540.4,0.1104]
[1755196376844,2.20406278,4541.2,4540.4,0.1104]
[1755196377045,2.20406167,4541.2,4540.4,0.1104]
[1755196377350,0.002,4541.2,4540.4,0.1104]
[1755196378258,0.002,4541.2,4540.5,0.428]
[1755196378577,0.002,4541.2,4540.8,0.1104]
[1755196379050,0.002,4541.2,4541.1,0.1104]
[1755196380302,0.002,4541.2,4540.5,0.428]
[1755196380451,0.002,4541.2,4540.8,0.1104]
[1755196380649,0.4455,4541.2,4540.8,0.1104]
[1755196381148,0.4435,4541.1,4540.3,0.001]
[1755196381349,0.1104,4540.9,4540.3,0.001]
[1755196381602,0.002,4541.2,4540.8,0.1104]
[1755196381918,0.002,4541.2,4540.8,0.9646]
[1755196382085,0.002,4541.2,4540.8,0.8542]
[1755196382251,0.002,4541.2,4540.4,1.2822]
[1755196382451,0.002,4541.2,4540.9,0.1104]
[1755196383503,0.002,4541.2,4541.0,1.2822]
[1755196383708,0.002,4541.2,4540.9,0.1104]
[1755196384010,2.20215811,4541.0,4540.9,0.1104]
[1755196384218,2.31255811,4541.0,4540.3,0.001]
[1755196384362,3.59325811,4541.0,4540.3,0.001]
[1755196384716,1.3911,4541.0,4540.3,0.001]
[1755196384867,2.20244894,4540.5,4540.3,0.001]
[1755196385372,0.4435,4540.5,4540.3,0.001]
[1755196385567,1.3911,4540.4,4540.3,0.001]
[1755196385773,3.59354912,4540.4,4540.3,0.001]
[1755196386169,3.905,4541.2,4540.3,0.001]
[1755196386170,0.002,4541.2,4540.3,0.001]
[1755196386576,2.20210962,4541.1,4540.3,0.001]
[1755196386775,0.002,4541.2,4540.3,0.001]
[1755196387098,0.002,4541.2,4540.5,2.20240061]
[1755196387306,0.002,4541.2,4540.6,0.428]
[1755196387614,0.002,4541.2,4540.4,0.8542]
[1755196388115,0.002,4541.2,4540.3,2.20349129]
[1755196388116,0.002,4541.2,4540.3,0.001]
[1755196388277,0.002,4541.2,4540.3,2.20349118]
[1755196389413,2.20406432,4541.2,4540.3,0.001]
[1755196389803,0.002,4541.2,4540.3,0.001]
[1755196390002,0.002,4541.2,4540.4,0.8542]
[1755196390177,0.002,4541.2,4540.5,0.428]
[1755196390379,0.002,4541.2,4540.4,0.8542]
[1755196390784,0.002,4541.2,4540.3,0.001]
[1755196390785,2.20244912,4540.4,4540.3,0.001]
[1755196391131,0.8372,4541.0,4540.3,0.001]
[1755196391336,0.4455,4541.2,4540.3,0.001]
[1755196391640,2.20236268,4540.6,4540.3,0.001]
[1755196391799,2.20231002,4540.7,4540.3,0.001]
[1755196392114,0.4455,4541.2,4540.3,0.001]
[1755196392280,2.2023944,4540.6,4540.3,0.001]
[1755196392617,2.20269168,4539.9,4539.8,0.001]
[1755196392914,1.2807,4540.5,4539.8,0.001]
[1755196393115,3.893,4540.3,4539.8,0.001]
[1755196393413,6.09544912,4540.4,4539.8,0.001]
[1755196393612,5.7265,4540.9,4539.8,0.001]
[1755196393812,3.893,4540.6,4539.8,0.001]
[1755196394210,2.20269168,4539.9,4539.8,0.001]
[1755196394410,2.20288578,4539.5,4539.4,0.001]
[1755196394736,10.37558578,4539.5,4539.4,0.001]
[1755196395241,9.19679166,4539.5,4538.1,0.001]
[1755196395539,0.55,4539.0,4538.1,0.001]
[1755196395836,2.20327406,4538.7,4538.1,0.001]
[1755196396136,4.03397406,4538.7,4538.1,0.001]
[1755196396300,3.59437406,4538.7,4538.1,0.001]
[1755196396699,2.31367406,4538.7,4538.1,0.001]
[1755196396902,6.20367406,4538.7,4538.1,0.001]
[1755196397095,6.64717406,4538.7,4538.1,0.001]
[1755196397348,7.48437406,4538.7,4538.1,0.001]
[1755196398246,2.20351681,4538.2,4538.1,0.001]
[1755196398399,2.75741681,4538.2,4538.1,0.001]
[1755196398600,3.59461681,4538.2,4538.1,0.001]
[1755196399237,7.48261681,4538.2,4538.1,0.001]
[1755196400054,7.48261681,4538.2,4536.4,0.8542]
[1755196400055,2.2036852,4537.9,4536.4,0.9646]
[1755196400355,2.20356536,4538.1,4536.1,0.428]
[1755196400356,2.20405936,4537.1,4536.1,0.428]
[1755196400557,2.20424537,4536.7,4536.1,0.5384]
[1755196400856,6.09024537,4536.7,4536.1,0.5384]
[1755196401062,0.1104,4536.8,4536.2,0.8542]
[1755196401363,0.1104,4537.6,4536.6,0.1104]
[1755196401573,0.1104,4537.6,4536.7,1.32694245]
[1755196401780,0.1104,4537.6,4536.8,1.3049]
[1755196401979,0.1104,4537.6,4536.9,2.34566892]
[1755196402180,2.20346556,4538.4,4536.9,0.14153]
[1755196402335,0.1104,4537.8,4537.4,2.20390454]
[1755196402522,0.1104,4537.8,4537.1,2.3144251]
[1755196402523,0.1104,4537.8,4537.5,1.3049]
[1755196402723,2.31388931,4538.3,4537.7,0.1104]
[1755196402923,0.1104,4538.3,4537.7,2.31411894]
[1755196403170,0.1104,4538.8,4538.2,0.1104]
[1755196403343,2.31366673,4538.8,4538.2,1.4153]
[1755196403540,0.1104,4538.8,4538.2,0.1104]
[1755196403740,0.55,4538.6,4536.4,0.4467]
[1755196403947,0.1104,4537.8,4536.4,0.5571]
[1755196404139,3.884,4537.7,4536.4,0.5571]
[1755196404339,0.1104,4537.1,4536.2,0.8582]
[1755196404540,3.883,4537.0,4536.2,0.9686]
[1755196404835,3.883,4537.0,4536.2,0.1104]
[1755196405160,3.883,4537.0,4535.8,0.4477]
[1755196405161,0.55,4536.8,4535.8,0.001]
[1755196405374,2.31503414,4535.9,4535.8,0.001]
[1755196405526,6.66753414,4535.9,4535.8,0.001]
[1755196405725,7.49893414,4535.9,4535.8,0.001]
[1755196405928,7.49893414,4535.9,4535.6,0.001]
[1755196405929,3.55,4535.8,4535.6,0.001]
[1755196406224,6.50663135,4535.7,4535.6,0.001]
[1755196406455,2.20473135,4535.7,4535.6,0.001]
[1755196406729,6.08573135,4535.7,4535.6,0.001]
[1755196407036,3.9914,4535.7,4535.6,0.001]
[1755196407242,6.19613135,4535.7,4535.6,0.001]
[1755196407426,3.9914,4535.7,4535.6,0.001]
[1755196407626,6.19613135,4535.7,4535.6,0.001]
[1755196407831,0.1104,4535.7,4535.6,0.001]
[1755196408033,3.9914,4535.7,4535.6,0.001]
[1755196408553,6.19613135,4535.7,4535.6,0.001]
[1755196408750,3.9914,4535.7,4535.6,0.001]
[1755196409372,6.19613135,4535.7,4535.6,0.001]
[1755196409579,7.49803135,4535.7,4535.6,0.001]
[1755196409750,10.49803135,4535.7,4535.6,0.001]
[1755196410156,11.04803135,4535.7,4535.6,0.001]
[1755196410471,0.55,4535.5,4534.9,0.001]
[1755196410657,7.16717718,4535.4,4534.9,0.001]
[1755196411088,9.74427718,4535.4,4534.9,0.001]
[1755196411288,0.1104,4535.4,4534.9,0.001]
[1755196411456,6.19427718,4535.4,4534.9,0.001]
[1755196411857,3.9894,4535.4,4534.9,0.001]
[1755196412377,3.9884,4535.4,4534.9,0.001]
[1755196412691,3.9884,4535.4,4535.0,0.4467]
[1755196413112,3.9884,4535.4,4534.9,0.8592]
[1755196413113,1.51662804,4538.5,4535.3,1.3059]
[1755196413297,0.0352,4536.2,4535.6,0.1104]
[1755196413483,0.0352,4536.2,4535.7,1.3049]
[1755196413812,0.0352,4536.2,4535.6,0.1104]
[1755196413813,0.0352,4536.2,4535.8,3.50957626]
[1755196413971,0.0352,4536.2,4535.6,0.1104]
[1755196414316,0.0352,4536.2,4535.3,0.001]
[1755196414317,3.877,4536.1,4535.3,0.001]
[1755196414474,0.1104,4535.4,4535.3,0.001]
[1755196414673,3.9864,4535.4,4535.3,0.001]
[1755196414876,3.876,4535.4,4535.3,0.001]
[1755196415070,0.1104,4535.5,4535.3,1.3059]
[1755196415271,3.876,4535.9,4535.3,1.3059]
[1755196415272,0.1104,4535.8,4535.4,1.3049]
[1755196415477,0.4705,4537.5,4535.5,1.3049]
[1755196415678,0.1104,4536.4,4535.7,0.1104]
[1755196415873,0.1104,4536.7,4536.1,0.1104]
[1755196416174,0.1104,4536.7,4536.2,1.3049]
[1755196416389,0.1104,4536.9,4536.3,1.32694439]
[1755196416594,0.1104,4537.3,4536.7,0.1104]
[1755196416990,3.875,4537.4,4535.8,1.3049]
[1755196417317,4.3019,4537.3,4535.3,0.001]
[1755196417502,0.1104,4535.8,4535.3,0.001]
[1755196417703,6.58538255,4537.3,4535.3,0.001]
[1755196417704,3.874,4536.1,4535.3,0.001]
[1755196417882,0.1104,4535.5,4535.3,0.001]
[1755196418412,0.1104,4535.7,4535.4,1.3049]
[1755196418613,0.1104,4535.7,4535.3,0.001]
[1755196419019,0.1104,4535.7,4535.4,0.8582]
[1755196419183,0.1104,4535.7,4535.3,0.001]
[1755196419828,0.5809,4535.7,4535.3,0.001]
[1755196420030,6.07859115,4536.0,4535.3,0.001]
[1755196420586,3.874,4536.0,4535.3,0.001]
[1755196421212,6.07859928,4536.0,4535.3,0.001]
[1755196421663,2.20471231,4535.8,4535.3,0.001]
[1755196421996,2.20477996,4535.6,4535.3,0.001]
[1755196422332,0.4725,4537.4,4535.3,0.001]
[1755196422542,0.002,4536.0,4535.9,2.20463414]
[1755196422746,0.002,4536.0,4535.9,1.3049]
[1755196423527,0.002,4536.0,4535.3,2.20590567]
[1755196424023,0.002,4536.0,4535.3,0.001]
[1755196424819,0.002,4536.0,4535.4,2.20487358]
[1755196425727,0.002,4536.0,4535.3,0.001]
[1755196426220,0.002,4536.0,4535.4,2.2048368]
[1755196426419,0.002,4536.0,4535.3,0.001]
[1755196426420,0.002,4536.0,4535.3,2.2059158]
[1755196426621,0.002,4536.0,4535.3,0.001]
[1755196426795,2.2065927,4536.0,4535.3,0.001]
[1755196426997,2.20468274,4535.8,4535.3,0.001]
[1755196427199,2.67526876,4535.7,4535.3,0.001]
[1755196427843,2.20468274,4535.8,4535.3,0.001]
[1755196428000,3.867,4535.9,4535.3,0.001]
[1755196428193,2.20477996,4535.6,4535.3,0.001]
[1755196428388,0.8314,4535.5,4535.3,0.001]
[1755196428593,2.20487718,4535.4,4535.3,0.001]
[1755196428788,3.58627718,4535.4,4535.3,0.001]
[1755196429221,6.58627718,4535.4,4535.3,0.001]
[1755196429849,7.05677718,4535.4,4535.3,0.001]
[1755196430052,7.64030164,4535.4,4535.3,0.001]
[1755196430352,7.84564077,4535.4,4535.3,0.001]
[1755196431235,11.70964077,4535.4,4535.3,0.001]
[1755196432216,11.70864077,4535.4,4535.3,0.001]
[1755196432419,3.9734,4535.4,4535.3,0.001]
[1755196432654,6.17827718,4535.4,4535.3,0.001]
[1755196433618,7.99037718,4535.4,4535.3,0.001]
[1755196433821,6.17827718,4535.4,4535.3,0.001]
[1755196434872,2.78924982,4535.4,4535.3,0.001]
[1755196435039,6.17727718,4535.4,4535.3,0.001]
[1755196435237,0.1104,4535.4,4535.3,0.001]
[1755196435560,3.9714,4535.4,4535.3,0.001]
[1755196436338,3.9714,4535.4,4535.3,0.4315]
[1755196436516,3.86,4535.7,4535.3,1.2393]
[1755196436720,0.1104,4535.8,4535.4,1.2383]
[1755196437058,3.862,4536.0,4535.5,1.2383]
[1755196437216,3.9724,4536.0,4535.6,0.8078]
[1755196437422,3.9724,4536.0,4535.3,0.001]
[1755196437848,6.17700022,4536.0,4535.3,0.001]
[1755196438120,3.9724,4536.0,4535.3,0.001]
[1755196438321,0.1104,4535.4,4535.3,0.001]
[1755196438757,0.1104,4535.4,4535.3,1.2393]
[1755196439160,0.1104,4535.4,4535.3,0.001]
[1755196441482,3.857,4535.7,4535.3,3.4442258]
[1755196441783,0.002,4535.9,4535.4,1.58272258]
[1755196441988,0.002,4535.9,4535.5,1.2383]
[1755196442137,0.002,4535.9,4535.7,2.20473135]
[1755196442493,0.002,4535.9,4535.8,1.26034682]
[1755196442638,0.002,4535.9,4535.7,0.1104]
[1755196443372,0.002,4535.9,4535.8,1.2383]
[1755196443570,0.002,4535.9,4535.8,3.44298274]
[1755196443737,0.002,4535.9,4535.8,1.2383]
[1755196444134,0.002,4535.9,4535.8,3.44298274]
[1755196444369,0.002,4535.9,4535.8,1.48907116]
[1755196445356,0.002,4535.9,4535.8,3.6937539]
[1755196445592,0.002,4535.9,4535.8,6.6937539]
[1755196445957,0.002,4535.9,4535.8,0.25077116]
[1755196446166,0.002,4535.9,4535.7,2.20472478]
[1755196447383,0.002,4535.9,4535.8,1.2383]
[1755196447584,0.002,4535.9,4535.8,3.44298274]
[1755196447984,0.002,4535.9,4535.8,0.8078]
[1755196448169,0.002,4535.9,4535.3,0.001]
[1755196448371,0.002,4535.9,4535.3,0.1114]
[1755196448573,0.002,4535.9,4535.4,0.8078]
[1755196448897,0.002,4535.9,4535.7,0.1104]
[1755196449104,0.002,4535.9,4535.7,2.31512599]
[1755196449255,0.002,4535.9,4535.7,1.3487]
[1755196449460,0.002,4535.9,4535.7,0.1104]
[1755196450296,0.002,4535.9,4535.3,0.83084925]
[1755196450470,0.002,4535.9,4535.6,2.20477996]
[1755196450797,0.002,4535.9,4535.8,2.31508274]
[1755196450961,0.002,4535.9,4535.8,3.55338274]
[1755196451480,0.002,4535.9,4535.8,2.31508274]
[1755196452461,0.002,4535.9,4535.8,0.1104]
[1755196453199,0.002,4535.9,4535.8,2.31508274]
[1755196453407,0.002,4535.9,4535.8,0.1104]
[1755196453764,0.002,4535.9,4535.3,0.001]
[1755196453964,0.1104,4535.8,4535.3,0.001]
[1755196455196,0.5492,4535.8,4535.3,0.001]
[1755196455494,0.1104,4535.8,4535.3,2.20591481]
[1755196455696,0.1104,4535.8,4535.3,0.001]
[1755196456381,0.1104,4535.8,4535.4,2.20483019]
[1755196456601,0.1104,4535.8,4535.5,2.20482499]
[1755196456817,0.002,4535.9,4535.6,1.2383]
[1755196457021,0.002,4535.9,4535.8,2.20468274]
[1755196457422,0.002,4535.9,4535.8,3.44298274]
[1755196458583,0.002,4535.9,4535.8,6.44298274]
[1755196458787,0.002,4535.9,4535.8,6.55338274]
[1755196460132,0.002,4535.9,4535.8,9.15508274]
[1755196462830,0.002,4535.9,4535.8,11.55556149]
[1755196462992,0.002,4535.9,4535.8,11.10666149]
[1755196463198,0.002,4535.9,4535.8,10.30346149]
[1755196463412,0.002,4535.9,4535.8,9.15508274]
[1755196464301,0.002,4535.9,4535.8,9.60398274]
[1755196464515,0.002,4535.9,4535.8,10.40718274]
[1755196465628,0.002,4535.9,4535.8,0.1104]
[1755196465829,0.002,4535.9,4535.5,0.1104]
[1755196466227,0.4656,4535.8,4535.5,0.1104]
[1755196466635,0.002,4535.9,4535.5,0.1104]